fUSD/lending_fUSD_20241220
["ID","MTS","AMOUNT","RATE_DAILY","PERIOD"]
[346061725,1734684657864,-984.805732,0.00021917,2]
[346061726,1734684657873,-500.0,0.00021917,4]
[346061727,1734684657882,-500.0,0.00021917,4]
[346061728,1734684657893,-984.805732,0.00021917,2]
[346061729,1734684657902,-500.0,0.00021917,4]
[346061730,1734684657912,-984.805732,0.00021917,2]
[346061731,1734684657920,-500.0,0.00021917,4]
[346061732,1734684657930,-984.805732,0.00021917,2]
[346061733,1734684657939,-503.18961849,0.00021917,4]
[346061734,1734684657948,-984.805732,0.00021917,2]
[346061735,1734684657957,-500.0,0.00021917,4]
[346061736,1734684657965,-500.0,0.00021917,4]
[346061737,1734684657974,-500.0,0.00021917,4]
[346061738,1734684657983,-984.805734,0.00021917,2]
[346061739,1734684657992,-500.0,0.00021917,4]
[346061740,1734684658001,-517.1862835,0.00021917,4]
[346061741,1734684658010,-500.0,0.00021917,4]
[346061742,1734684658021,-500.0,0.00021917,4]
[346061743,1734684658033,-500.0,0.00021917,4]
[346061744,1734684658043,-500.0,0.00021917,4]
[346061745,1734684658053,-500.0,0.00021917,4]
[346061746,1734684658062,-500.0,0.00021917,4]
[346061747,1734684658071,-500.0,0.00021917,4]
[346061748,1734684658080,-538.09474516,0.00021917,4]
[346061749,1734684658090,-500.0,0.00021917,4]
[346061750,1734684658099,-507.16068098,0.00021917,4]
[346061751,1734684658108,-498.69292853,0.00021917,4]
[346061752,1734684658118,-213.58460603,0.00021917,4]
[346061753,1734684658127,-500.0,0.00021917,4]
[346061754,1734684658137,-500.0,0.00021917,4]
[346061755,1734684658146,-500.0,0.00021917,4]
[346061756,1734684658155,-500.0,0.00021917,4]
[346061757,1734684658165,-500.0,0.00021917,4]
[346061758,1734684658173,-500.0,0.00021917,4]
[346061759,1734684658182,-500.0,0.00021917,4]
[346061760,1734684658191,-500.0,0.00021917,4]
[346061761,1734684658201,-500.0,0.00021917,4]
[346061762,1734684658210,-516.43278582,0.00021917,4]
[346061763,1734684658219,-500.0,0.00021917,4]
[346061764,1734684658228,-448.65298275,0.00021917,4]
[346061765,1734684658238,-500.0,0.00021917,4]
[346061766,1734684658247,-500.0,0.00021917,4]
[346061767,1734684658257,-522.6836916,0.00021917,4]
[346061768,1734684658363,-500.0,0.00021917,4]
[346061769,1734684658372,-500.0,0.00021917,4]
[346061770,1734684658382,-500.0,0.00021917,4]
[346061771,1734684658391,-500.0,0.00021917,4]
[346061772,1734684658400,-500.0,0.00021917,4]
[346061773,1734684658410,-514.63669263,0.00021917,4]
[346061774,1734684658419,-500.0,0.00021917,4]
[346061775,1734684658429,-223.54186422,0.00021917,4]
[346061776,1734684658439,-500.0,0.00021917,4]
[346061777,1734684658449,-500.0,0.00021917,4]
[346061778,1734684658459,-500.0,0.00021917,4]
[346061779,1734684658470,-500.0,0.00021917,4]
[346061780,1734684658480,-500.0,0.00021917,4]
[346061781,1734684658491,-500.0,0.00021917,4]
[346061782,1734684658500,-505.44545312,0.00021917,4]
[346061783,1734684658511,-500.0,0.00021917,4]
[346061784,1734684658525,-167.63765371,0.00021917,4]
[346061785,1734684658585,-332.36234629,0.00021917,4]
[346061786,1734684658594,-500.0,0.00021917,4]
[346061787,1734684658604,-500.0,0.00021917,4]
[346061788,1734684658613,-503.96411978,0.00021917,4]
[346061789,1734684658623,-500.0,0.00021917,4]
[346061790,1734684658632,-219.12001373,0.00021917,4]
[346061791,1734684658641,-318.2767202,0.00021917,4]
[346061792,1734684658731,-181.7232798,0.00021917,4]
[346061793,1734684658741,-502.51701845,0.00021917,4]
[346061794,1734684658751,-500.0,0.00021917,4]
[346061795,1734684658760,-500.0,0.00021917,4]
[346061796,1734684658770,-139.26213627,0.00021917,4]
[346061797,1734684658811,-371.4082785,0.00021917,4]
[346061798,1734684658823,-360.15386279,0.00021917,4]
[346061799,1734684658834,-157.03865036,0.00021917,4]
[346061800,1734684658844,-500.0,0.00021917,4]
[346061801,1734684658855,-500.0,0.00021917,4]
[346061802,1734684658864,-500.0,0.00021917,4]
[346061803,1734684658874,-503.66794385,0.00021917,4]
[346061804,1734684658883,-500.0,0.00021917,4]
[346061805,1734684658892,-500.0,0.00021917,4]
[346061806,1734684658903,-500.0,0.00021917,4]
[346061807,1734684658913,-500.0,0.00021917,4]
[346061808,1734684658922,-500.0,0.00021917,4]
[346061809,1734684658931,-500.0,0.00021917,4]
[346061810,1734684658941,-500.0,0.00021917,4]
[346061811,1734684658950,-500.0,0.00021917,4]
[346061812,1734684658959,-500.0,0.00021917,4]
[346061813,1734684658968,-500.0,0.00021917,4]
[346061814,1734684658978,-500.0,0.00021917,4]
[346061815,1734684658988,-500.0,0.00021917,4]
[346061816,1734684658998,-500.0,0.00021917,4]
[346061817,1734684659007,-500.0,0.00021917,4]
[346061818,1734684659016,-500.0,0.00021917,4]
[346061819,1734684659029,-392.52791415,0.00021917,4]
[346061820,1734684659039,-194.18783914,0.00021917,4]
[346061821,1734684659049,-500.0,0.00021917,4]
[346061822,1734684659058,-500.0,0.00021917,4]
[346061823,1734684659068,-500.0,0.00021917,4]
[346061824,1734684659078,-500.0,0.00021917,4]
[346061825,1734684659087,-500.0,0.00021917,4]
[346061826,1734684659097,-500.0,0.00021917,4]
[346061827,1734684659106,-500.0,0.00021917,4]
[346061828,1734684659116,-598.18525038,0.00021917,4]
[346061829,1734684659126,-500.0,0.00021917,4]
[346061830,1734684659135,-513.99615007,0.00021917,4]
[346061831,1734684659144,-500.0,0.00021917,4]
[346061832,1734684659154,-500.0,0.00021917,4]
[346061833,1734684659163,-509.26950168,0.00021917,4]
[346061834,1734684659172,-503.85899731,0.00021917,4]
[346061835,1734684659182,-500.0,0.00021917,4]
[346061836,1734684659191,-500.0,0.00021917,4]
[346061837,1734684659201,-500.0,0.00021917,4]
[346061838,1734684659210,-344.6978343,0.00021917,4]
[346061839,1734684659220,-500.0,0.00021917,4]
[346061840,1734684659230,-319.17150514,0.00021917,4]
[346061841,1734684659239,-569.69770715,0.00021917,4]
[346061842,1734684659249,-500.0,0.00021917,4]
[346061843,1734684659260,-500.0,0.00021917,4]
[346061844,1734684659270,-500.0,0.00021917,4]
[346061845,1734684659282,-500.0,0.00021917,4]
[346061846,1734684659291,-502.87437279,0.00021917,4]
[346061847,1734684659301,-500.0,0.00021917,4]
[346061848,1734684659310,-500.0,0.00021917,4]
[346061849,1734684659319,-500.0,0.00021917,4]
[346061850,1734684659329,-151.217853,0.00021917,2]
[346061851,1734684659338,-500.0,0.00021917,4]
[346061852,1734684659348,-500.0,0.00021917,4]
[346061853,1734684659358,-500.0,0.00021917,4]
[346061854,1734684659367,-635.97117447,0.00021917,4]
[346061855,1734684659377,-500.0,0.00021917,4]
[346061856,1734684659386,-500.0,0.00021917,4]
[346061857,1734684659395,-500.0,0.00021917,4]
[346061858,1734684659405,-500.0,0.00021917,4]
[346061859,1734684659415,-500.0,0.00021917,4]
[346061860,1734684659425,-500.0,0.00021917,4]
[346061861,1734684659434,-500.0,0.00021917,4]
[346061862,1734684659444,-500.0,0.00021917,4]
[346061863,1734684659454,-358.34891192,0.00021917,4]
[346061864,1734684659464,-500.0,0.00021917,4]
[346061865,1734684659474,-500.0,0.00021917,4]
[346061866,1734684659484,-500.0,0.00021917,4]
[346061867,1734684659495,-500.0,0.00021917,4]
[346061868,1734684659505,-500.0,0.00021917,4]
[346061869,1734684659514,-500.0,0.00021917,4]
[346061870,1734684659527,-500.0,0.00021917,4]
[346061871,1734684659537,-500.0,0.00021917,4]
[346061872,1734684659546,-506.88999437,0.00021917,4]
[346061873,1734684659556,-500.0,0.00021917,4]
[346061874,1734684659566,-500.0,0.00021917,4]
[346061875,1734684659576,-500.0,0.00021917,4]
[346061876,1734684659586,-500.0,0.00021917,4]
[346061877,1734684659596,-500.0,0.00021917,4]
[346061878,1734684659605,-500.0,0.00021917,4]
[346061879,1734684659615,-500.0,0.00021917,4]
[346061880,1734684659624,-500.0,0.00021917,4]
[346061881,1734684659634,-639.16065358,0.00021917,4]
[346061882,1734684659644,-500.0,0.00021917,4]
[346061883,1734684659654,-500.0,0.00021917,4]
[346061884,1734684659664,-500.0,0.00021917,4]
[346061885,1734684659675,-500.0,0.00021917,4]
[346061886,1734684659684,-503.52541417,0.00021917,4]
[346061887,1734684659695,-500.0,0.00021917,4]
[346061888,1734684659704,-500.0,0.00021917,4]
[346061889,1734684659714,-500.0,0.00021917,4]
[346061890,1734684659723,-500.0,0.00021917,4]
[346061891,1734684659732,-151.0,0.00021917,2]
[346061892,1734684659742,-500.0,0.00021917,4]
[346061893,1734684659751,-500.0,0.00021917,4]
[346061894,1734684659760,-242.633355,0.00021917,4]
[346061895,1734684659770,-14.07901337,0.00021917,4]
[346061896,1734684659818,-412.39319231,0.00021917,4]
[346061897,1734684659915,-73.52779432,0.00021917,4]
[346061898,1734684659925,-151.0,0.00021917,2]
[346061899,1734684659935,-86.19143417,0.00021917,4]
[346061900,1734684659968,-413.80856583,0.00021917,4]
[346061901,1734684659977,-511.4053714,0.00021917,4]
[346061902,1734684659987,-500.0,0.00021917,4]
[346061903,1734684659996,-142.96638677,0.00021917,2]
[346061904,1734684660008,-8.03361323,0.00021917,2]
[346061905,1734684660017,-309.22,0.00021917,4]
[346061906,1734684660027,-151.0,0.00021917,2]
[346061907,1734684660037,-151.0,0.00021917,2]
[346061908,1734684660046,-155.485016,0.00021917,2]
[346061909,1734684660055,-500.0,0.00021917,4]
[346061910,1734684660065,-500.0,0.00021917,4]
[346061911,1734684660074,-500.0,0.00021917,4]
[346061912,1734684660084,-500.0,0.00021917,4]
[346061913,1734684660093,-500.0,0.00021917,4]
[346061914,1734684660102,-500.0,0.00021917,4]
[346061915,1734684660112,-65.19915661,0.00021917,4]
[346061917,1734685152032,152.59,0.00010137,2]
[346061919,1734685494943,150.39,0.00019631,30]
[346061926,1734685685375,-265.33272251,0.000129,2]
[346061927,1734685685401,-300.0,0.00012999,2]
[346061928,1734685685425,-450.0,0.00013,2]
[346061929,1734685685448,-19521.5,0.00013,2]
[346061930,1734685685472,-1490.5072276,0.00013,2]
[346061931,1734685689777,9970.689607,0.000128,2]
[346061935,1734685750120,-163.9246,0.00013699,2]
[346061936,1734685756085,-28.0754,0.00013699,2]
[346061937,1734685756106,-500.0,0.00015,2]
[346061938,1734685756127,-300.0,0.00015063,2]
[346061939,1734685756151,-153.0,0.00015064,2]
[346061940,1734685756186,-153.0,0.00015064,2]
[346061941,1734685756207,-153.0,0.00015064,2]
[346061942,1734685756227,-153.0,0.00015064,2]
[346061943,1734685756248,-153.0,0.00015064,2]
[346061944,1734685756268,-153.0,0.00015064,2]
[346061945,1734685756290,-153.0,0.00015064,2]
[346061946,1734685756310,-153.0,0.00015064,2]
[346061947,1734685756331,-153.0,0.00015064,2]
[346061948,1734685756352,-153.0,0.00015064,2]
[346061949,1734685756373,-153.0,0.00015064,2]
[346061950,1734685756395,-420.0,0.00016484,2]
[346061951,1734685756416,-487.3573567,0.00016781,7]
[346061952,1734685756438,-459.96506742,0.00017,2]
[346061953,1734685757364,-90.03493258,0.00017,2]
[346061954,1734685757386,-587.0,0.0001804,2]
[346061955,1734685757408,-152.59,0.00018065,2]
[346061956,1734685757430,-1083.05,0.00018068,2]
[346061957,1734685757452,-600.0,0.00019,2]
[346061958,1734685757475,-403.79,0.00019428,2]
[346061959,1734685757496,-13124.067376,0.00019448,2]
[346061960,1734685787414,-211.67133403,0.00014964,2]
[346061961,1734685787447,-248.4,0.00019362,2]
[346061962,1734685787473,-10775.932624,0.00019448,2]
[346061963,1734685787499,-737.74,0.00019508,2]
[346061964,1734685787525,-5375.63648486,0.00019508,2]
[346061972,1734685832261,-150.0,0.00013699,2]
[346061973,1734685832271,-150.0,0.00013699,2]
[346061974,1734685832282,-150.87130879,0.00013699,2]
[346061975,1734685832293,-500.0,0.000181,2]
[346061976,1734685832303,-151.61663114,0.0001949,2]
[346061977,1734685832313,-248.15,0.00019508,2]
[346061978,1734685832324,-6748.23351514,0.00019508,2]
[346061979,1734685832333,-250.0,0.0001959,2]
[346061980,1734685832343,-676.12854488,0.00019644,2]
[346061981,1734685832360,-123.87145512,0.00019644,2]
[346061982,1734685832370,-325.77,0.00019684,2]
[346061983,1734685832380,-300.0,0.00019815,2]
[346061984,1734685832390,-940.3,0.00019816,2]
[346061985,1734685832401,-300.0,0.00019837,2]
[346061986,1734685832410,-250.0,0.00019862,2]
[346061987,1734685832421,-250.0,0.0001989,2]
[346061988,1734685832430,-2618.06,0.00019986,2]
[346061989,1734685832440,-5716.99964488,0.00019986,2]
[346061990,1734685832516,-380.1313218,0.00019986,2]
[346061991,1734685832528,-956.61849508,0.00019986,2]
[346061992,1734685832544,-1871.55053824,0.00019986,2]
[346061993,1734685832554,-500.0,0.00020068,2]
[346061994,1734685832564,-800.0,0.00020068,2]
[346061995,1734685832574,-413.17,0.00020169,2]
[346061996,1734685832584,-1000.0,0.00020268,2]
[346061997,1734685832593,-778.68,0.00020294,2]
[346061998,1734685832603,-169.91,0.00020318,2]
[346061999,1734685832612,-952.32036132,0.00020332,2]
[346062000,1734685832624,-130.72963868,0.00020332,2]
[346062001,1734685832634,-403.79,0.00020399,2]
[346062002,1734685832643,-170.41,0.00020431,2]
[346062003,1734685832653,-250.0,0.00020492,2]
[346062004,1734685832663,-200.0,0.00020493,2]
[346062005,1734685832673,-575.87763035,0.000205,2]
[346062006,1734685832684,-1500.00005,0.000205,2]
[346062007,1734685832696,-924.12231965,0.000205,2]
[346062008,1734685832712,-200.0,0.00020522,2]
[346062009,1734685832722,-1737.03768035,0.0002054,2]
[346062010,1734685832734,-2233.96231965,0.0002054,2]
[346062011,1734685832744,-435.012,0.0002082,2]
[346062012,1734685832754,-804.7955,0.00020851,2]
[346062013,1734685832764,-162.07,0.00020894,2]
[346062014,1734685832773,-8490.03,0.00020951,2]
[346062015,1734685832782,-9999.99,0.00020951,2]
[346062016,1734685832792,-411.45,0.00020951,2]
[346062017,1734685832801,-150.99,0.00020951,2]
[346062018,1734685832811,-150.99,0.00020951,2]
[346062019,1734685832820,-961.75,0.00020951,5]
[346062020,1734685832829,-299.99,0.00020951,7]
[346062021,1734685832839,-2335.155,0.0002099,2]
[346062022,1734685832849,-200.952,0.0002099,2]
[346062023,1734685832859,-650.0,0.00021,2]
[346062024,1734685832868,-3885.0,0.00021086,2]
[346062025,1734685832877,-150.0,0.00021086,2]
[346062026,1734685832887,-12561.006,0.00021086,2]
[346062027,1734685832896,-1170.0,0.00021086,2]
[346062028,1734685832906,-800.0,0.00021164,2]
[346062029,1734685832915,-403.79,0.00021371,2]
[346062030,1734685832924,-167.98,0.00021512,2]
[346062031,1734685832934,-420.0,0.0002158,2]
[346062032,1734685832943,-500.0,0.000216,7]
[346062033,1734685832956,-6142.802,0.00021617,2]
[346062034,1734685832966,-844.2392,0.00021617,2]
[346062035,1734685832975,-2172.88207749,0.00021617,2]
[346062036,1734685832985,-228.176,0.00021635,2]
[346062037,1734685832995,-150.671,0.00021635,2]
[346062038,1734685833004,-500.0,0.00021643,2]
[346062039,1734685833014,-1100.0,0.000217,7]
[346062040,1734685833023,-13727.23172131,0.000217,2]
[346062041,1734685833033,-3000.0,0.000217,2]
[346062042,1734685833043,-3201.59531513,0.00021717,2]
[346062043,1734685833052,-4179.93546403,0.00021717,2]
[346062044,1734685833061,-992.21,0.00021717,2]
[346062045,1734685833071,-100168.1658,0.00021717,2]
[346062046,1734685833080,-1282.1636,0.00021717,2]
[346062047,1734685833090,-500.0,0.00021717,2]
[346062048,1734685833099,-49250.00000098,0.00021717,2]
[346062049,1734685833109,-6033.26742143,0.00021717,2]
[346062050,1734685833120,-315.73902222,0.00021717,2]
[346062051,1734685833130,-500.0,0.00021741,2]
[346062052,1734685833140,-1000.0,0.00021799,2]
[346062053,1734685833150,-1600.0,0.000218,7]
[346062054,1734685833160,-151.11,0.00021807,2]
[346062055,1734685833170,-642.4713417,0.00021816,2]
[346062056,1734685833186,-485.18980573,0.00021816,2]
[346062057,1734685833204,-500.0,0.00021816,2]
[346062058,1734685833350,-500.0,0.00021816,2]
[346062059,1734685833360,-500.0,0.00021816,2]
[346062060,1734685833370,-545.63800803,0.00021816,2]
[346062061,1734685833379,-500.0,0.00021816,2]
[346062062,1734685833389,-500.0,0.00021816,2]
[346062063,1734685833398,-244.21001739,0.00021816,2]
[346062064,1734685833407,-500.0,0.00021816,2]
[346062065,1734685833416,-500.0,0.00021816,2]
[346062066,1734685833426,-500.0,0.00021816,2]
[346062067,1734685833436,-500.0,0.00021816,2]
[346062068,1734685833445,-500.0,0.00021816,2]
[346062069,1734685833460,-500.0,0.00021816,2]
[346062070,1734685833470,-500.0,0.00021816,2]
[346062071,1734685833479,-500.0,0.00021816,2]
[346062072,1734685833489,-500.0,0.00021816,2]
[346062073,1734685833498,-1000.0,0.00021817,2]
[346062074,1734685833508,-212.8443,0.00021817,2]
[346062075,1734685833517,-471661.1136,0.00021817,2]
[346062076,1734685833527,-37031.9186,0.00021817,2]
[346062077,1734685833536,-157.74331685,0.00021817,2]
[346062078,1734685833546,-150.0,0.00021847,4]
[346062079,1734685833556,-150.0,0.00021847,4]
[346062080,1734685833565,-2172.88207745,0.00021871,2]
[346062081,1734685833575,-500.0,0.00021873,2]
[346062082,1734685833584,-8139.74594074,0.0002188,2]
[346062083,1734685833594,-2200.0,0.000219,7]
[346062084,1734685833604,-151.11,0.00021907,2]
[346062085,1734685833613,-1000.0,0.00021916,2]
[346062086,1734685833623,-500.0,0.00021916,2]
[346062087,1734685833632,-999.0,0.00021916,2]
[346062088,1734685833642,-4551.9946,0.00021917,2]
[346062089,1734685833651,-1122.0,0.00021917,2]
[346062090,1734685833661,-151.0,0.00021917,2]
[346062091,1734685833671,-151.0,0.00021917,2]
[346062092,1734685833680,-151.0,0.00021917,2]
[346062093,1734685833690,-151.0,0.00021917,2]
[346062094,1734685833704,-155.268383,0.00021917,2]
[346062095,1734685833713,-153.024207,0.00021917,2]
[346062096,1734685833722,-308.51720559,0.00021917,4]
[346062097,1734685833732,-151.0,0.00021917,2]
[346062098,1734685833742,-151.0,0.00021917,2]
[346062099,1734685833751,-501.09748914,0.00021917,4]
[346062100,1734685833760,-398.8637159,0.00021917,4]
[346062101,1734685833770,-531.78735093,0.00021917,4]
[346062102,1734685833779,-306.25268148,0.00021917,4]
[346062103,1734685833789,-507.18982564,0.00021917,4]
[346062104,1734685833798,-2000.0,0.00021917,2]
[346062105,1734685833807,-200.0,0.00021917,2]
[346062106,1734685833816,-500.0,0.00021917,4]
[346062107,1734685833826,-500.0,0.00021917,4]
[346062108,1734685833835,-500.0,0.00021917,4]
[346062109,1734685833845,-500.0,0.00021917,4]
[346062110,1734685833855,-500.0,0.00021917,4]
[346062111,1734685833864,-500.0,0.00021917,4]
[346062112,1734685833873,-500.0,0.00021917,4]
[346062113,1734685833882,-500.0,0.00021917,4]
[346062114,1734685833892,-500.0,0.00021917,4]
[346062115,1734685833902,-511.84773022,0.00021917,4]
[346062116,1734685833911,-500.0,0.00021917,4]
[346062117,1734685833921,-500.0,0.00021917,4]
[346062118,1734685833930,-500.0,0.00021917,4]
[346062119,1734685833939,-500.0,0.00021917,4]
[346062120,1734685833951,-500.0,0.00021917,4]
[346062121,1734685833963,-500.0,0.00021917,4]
[346062122,1734685833973,-500.0,0.00021917,4]
[346062123,1734685833983,-500.0,0.00021917,4]
[346062124,1734685833993,-500.0,0.00021917,4]
[346062125,1734685834004,-500.0,0.00021917,4]
[346062126,1734685834014,-500.0,0.00021917,4]
[346062127,1734685834025,-500.0,0.00021917,4]
[346062128,1734685834038,-500.0,0.00021917,4]
[346062129,1734685834048,-500.0,0.00021917,4]
[346062130,1734685834059,-500.0,0.00021917,4]
[346062131,1734685834068,-500.0,0.00021917,4]
[346062132,1734685834078,-500.0,0.00021917,4]
[346062133,1734685834088,-500.0,0.00021917,4]
[346062134,1734685834098,-500.0,0.00021917,4]
[346062135,1734685834108,-500.0,0.00021917,4]
[346062136,1734685834117,-500.0,0.00021917,4]
[346062137,1734685834126,-500.0,0.00021917,4]
[346062138,1734685834137,-500.0,0.00021917,4]
[346062139,1734685834147,-420.17210759,0.00021917,4]
[346062140,1734685834157,-503.82576475,0.00021917,4]
[346062141,1734685834167,-500.0,0.00021917,4]
[346062142,1734685834178,-508.61184314,0.00021917,4]
[346062143,1734685834187,-500.0,0.00021917,4]
[346062144,1734685834197,-508.38059503,0.00021917,4]
[346062145,1734685834217,-500.0,0.00021917,4]
[346062146,1734685834227,-503.35526228,0.00021917,4]
[346062147,1734685834237,-500.0,0.00021917,4]
[346062148,1734685834247,-500.0,0.00021917,4]
[346062149,1734685834258,-500.0,0.00021917,4]
[346062150,1734685834268,-500.0,0.00021917,4]
[346062151,1734685834278,-500.0,0.00021917,4]
[346062152,1734685834287,-500.0,0.00021917,4]
[346062153,1734685834298,-500.0,0.00021917,4]
[346062154,1734685834308,-500.0,0.00021917,4]
[346062155,1734685834318,-354.31685667,0.00021917,4]
[346062156,1734685834328,-502.03115966,0.00021917,4]
[346062157,1734685834338,-500.0,0.00021917,4]
[346062158,1734685834348,-500.0,0.00021917,4]
[346062159,1734685834358,-500.0,0.00021917,4]
[346062160,1734685834368,-500.0,0.00021917,4]
[346062161,1734685834378,-500.0,0.00021917,4]
[346062162,1734685834388,-500.0,0.00021917,4]
[346062163,1734685834399,-500.0,0.00021917,4]
[346062164,1734685834409,-500.0,0.00021917,4]
[346062165,1734685834418,-500.0,0.00021917,4]
[346062166,1734685834428,-500.0,0.00021917,4]
[346062167,1734685834438,-429.25686228,0.00021917,4]
[346062168,1734685834448,-500.0,0.00021917,4]
[346062169,1734685834461,-500.0,0.00021917,4]
[346062170,1734685834470,-500.0,0.00021917,4]
[346062171,1734685834480,-500.0,0.00021917,4]
[346062172,1734685834490,-500.0,0.00021917,4]
[346062173,1734685834499,-500.0,0.00021917,4]
[346062174,1734685834509,-500.0,0.00021917,4]
[346062175,1734685834518,-500.0,0.00021917,4]
[346062176,1734685834528,-500.0,0.00021917,4]
[346062177,1734685834537,-500.0,0.00021917,4]
[346062178,1734685834547,-500.0,0.00021917,4]
[346062179,1734685834556,-500.0,0.00021917,4]
[346062180,1734685834565,-500.0,0.00021917,4]
[346062181,1734685834575,-500.0,0.00021917,4]
[346062182,1734685834584,-631.46261371,0.00021917,4]
[346062183,1734685834594,-500.0,0.00021917,4]
[346062184,1734685834604,-500.0,0.00021917,4]
[346062185,1734685834614,-500.0,0.00021917,4]
[346062186,1734685834623,-500.0,0.00021917,4]
[346062187,1734685834633,-500.0,0.00021917,4]
[346062188,1734685834642,-500.0,0.00021917,4]
[346062189,1734685834652,-585.60574651,0.00021917,4]
[346062190,1734685834661,-506.83400586,0.00021917,4]
[346062191,1734685834670,-500.0,0.00021917,4]
[346062192,1734685834681,-507.89473968,0.00021917,4]
[346062193,1734685834691,-506.14792364,0.00021917,4]
[346062194,1734685834704,-500.0,0.00021917,4]
[346062195,1734685834714,-500.0,0.00021917,4]
[346062196,1734685834724,-396.78615451,0.00021917,4]
[346062197,1734685834733,-506.80352036,0.00021917,4]
[346062198,1734685834743,-500.0,0.00021917,4]
[346062199,1734685834754,-511.70665787,0.00021917,4]
[346062200,1734685834764,-500.0,0.00021917,4]
[346062201,1734685834774,-500.0,0.00021917,4]
[346062202,1734685834784,-500.0,0.00021917,4]
[346062203,1734685834794,-500.0,0.00021917,4]
[346062204,1734685834804,-500.0,0.00021917,4]
[346062205,1734685834813,-500.0,0.00021917,4]
[346062206,1734685834823,-500.0,0.00021917,4]
[346062207,1734685834833,-500.0,0.00021917,4]
[346062208,1734685834843,-500.0,0.00021917,4]
[346062209,1734685834853,-395.28293139,0.00021917,4]
[346062210,1734685834862,-500.44331285,0.00021917,4]
[346062211,1734685834871,-500.0,0.00021917,4]
[346062212,1734685834881,-151.0,0.00021917,2]
[346062213,1734685834890,-500.0,0.00021917,4]
[346062214,1734685834899,-151.0,0.00021917,2]
[346062215,1734685834909,-500.0,0.00021917,4]
[346062216,1734685834918,-500.0,0.00021917,4]
[346062217,1734685834927,-500.0,0.00021917,4]
[346062218,1734685834937,-513.13282528,0.00021917,4]
[346062219,1734685834947,-500.0,0.00021917,4]
[346062220,1734685834962,-500.0,0.00021917,4]
[346062221,1734685834972,-500.0,0.00021917,4]
[346062222,1734685834982,-451.62,0.00021917,4]
[346062223,1734685834991,-366.11950496,0.00021917,4]
[346062224,1734685835001,-503.69993962,0.00021917,4]
[346062225,1734685835011,-500.0,0.00021917,4]
[346062226,1734685835021,-500.0,0.00021917,4]
[346062227,1734685835030,-500.0,0.00021917,4]
[346062228,1734685835040,-500.0,0.00021917,4]
[346062229,1734685835049,-441.165538,0.00021917,2]
[346062230,1734685835059,-616.09816107,0.00021917,4]
[346062231,1734685835071,-441.165538,0.00021917,2]
[346062232,1734685835080,-441.165538,0.00021917,2]
[346062233,1734685835090,-441.165538,0.00021917,2]
[346062234,1734685835099,-500.0,0.00021917,4]
[346062235,1734685835109,-500.0,0.00021917,4]
[346062236,1734685835118,-500.0,0.00021917,4]
[346062237,1734685835128,-500.0,0.00021917,4]
[346062238,1734685835138,-540.12,0.00021917,4]
[346062239,1734685835147,-511.49738317,0.00021917,4]
[346062240,1734685835156,-507.40494782,0.00021917,4]
[346062241,1734685835166,-500.0,0.00021917,4]
[346062242,1734685835175,-500.0,0.00021917,4]